Cogmind - Beta 10.2 @@@ ROGUE MODE // 2021.12.10 @ 05:31:45 Player: Azken Zutik Result: Core destroyed Performance ------------- Evolutions (9) 4500 Regions Visited (31) 6200 Robots Destroyed (359) 1795 Value Destroyed (18669) 18669 Prototype IDs (65) 1300 Alien Tech Used (2) 400 Bonus (11431) 11431 TOTAL SCORE: 44295 Bonus ------- Triggered High Security 500 High Alert Combat Kills 5622 Follower Combat Kills 2559 Network Hubs Disabled 800 Aligned with FarCom 300 Met Data Miner 300 Met Imprinter 300 Met Zhirov 300 Built Enhanced Grunts 300 A7 Reached Mainframe 300 Met R17 at Cetus 500 Friendly Fire -350 Cogmind --------- Core Integrity 0/1600 Matter 276/300 Energy 100/100 System Corruption 28% Temperature Cool (0) Movement Core (50) Location -1/Access Parts ------- > --- POWER (3) -------- (None) > --- PROPULSION (4) --- (None) > --- UTILITY (12) ----- (None) > --- WEAPON (6) ------- (None) > --- INVENTORY (4) ---- (None) Peak State ------------ > --- POWER ------------ Quantum Reactor Quantum Reactor Quantum Reactor > --- PROPULSION ------- Enhanced Armored Heavy Treads Enhanced Armored Heavy Treads > --- UTILITY ---------- Advanced Heat Sink Advanced Heat Sink Large Storage Unit Large Storage Unit Large Storage Unit Advanced Target Analyzer Improved Weapon Cycler Advanced Phase Shifter Layered Heavy Armor Plating Remote Shield Dynamic Insulation System > --- WEAPON ----------- Hypervelocity Railgun Hypervelocity Railgun Hypervelocity Railgun Hypervelocity Railgun Hypervelocity Railgun Enhanced Force Lance > --- INVENTORY -------- Quantum Reactor Enhanced Armored Heavy Treads Enhanced Armored Heavy Treads Medium Matter Pod Compact Matter Pod Experimental Power Shielding Heavy Armor Plating Advanced Thermal Shield Improved Remote Shield Railgun Railgun Railgun Railgun Railgun Railgun Fusion Bomb Launcher Advanced Remote Datajack [Rating: 184] Favorites ----------- Power Antimatter Reactor Engine Reinforced Deuterium Engine Power Core Reinforced Fission Core Reactor Antimatter Reactor Propulsion Heavy Treads Treads Heavy Treads Wheel Armored Huge Wheel Utility Large Storage Unit Device Dynamic Insulation System Storage Large Storage Unit Processor Advanced Target Analyzer Hackware Improved System Shield Protection Light Regenerative Plating Weapon Hypervelocity Railgun Energy Gun Gamma Rifle Energy Cannon Nova Cannon Ballistic Gun Hypervelocity Railgun Ballistic Cannon Bore Cannon Launcher Grenade Launcher Special Weapon Plasma Cutter Slashing Weapon Longsword +1 Piercing Weapon Enhanced Force Lance Special Melee Weapon Datajack Build | -11 -10 -9 -9 -9 -8 -8 -7 -7 -7 -7 -7 -7 -6 -6 -6 -6 -6 -5 -5 -5 -5 -5 -4 -4 -4 -4 -4 -4 -3 -2 -1 ------- Run | Scr Mat Mat Min Exi Min Mat Fac Was Fac Low Low Zio Pro Fac Low Low Dat Pro Fac Upp Upp Zhi Pro Fac Ext Cet Arc Hub Res Res Acc Slots Evolved 18 | . . 2 . . . 2 2 . . . . . . 2 . . . . 2 . . . . 2 . . . . 2 2 2 Power 2 | . . . . . . . . . . . . . . . . . . . . . . . . 1 . . . . . 1 . Propulsion 2 | . . . . . . . . . . . . . . . . . . . 2 . . . . . . . . . . . . Utility 10 | . . 2 . . . . 2 . . . . . . 2 . . . . . . . . . 1 . . . . 2 1 . Weapon 4 | . . . . . . 2 . . . . . . . . . . . . . . . . . . . . . . . . 2 Parts Attached 321 | 7 11 11 3 . 3 15 2 5 . . . 7 14 18 8 . . 9 13 4 3 8 1 8 35 11 . 14 59 24 28 Power 29 | 1 2 1 1 . . 1 . 1 . . . . 1 . 1 . . . . . . 1 . 1 1 1 . 1 5 6 4 Engine 8 | 1 1 1 1 . . 1 . . . . . . 1 . 1 . . . . . . . . 1 . . . . . . . Core 3 | . 1 . . . . . . . . . . . . . . . . . . . . . . . 1 1 . . . . . Reactor 18 | . . . . . . . . 1 . . . . . . . . . . . . . 1 . . . . . 1 5 6 4 Propulsion 48 | 2 2 2 1 . 1 2 . . . . . 3 2 5 1 . . . 4 . . 2 . . 3 2 . 1 10 3 2 Treads 39 | 2 2 2 1 . 1 . . . . . . 1 2 2 1 . . . 2 . . 2 . . 3 2 . 1 10 3 2 Leg . | . . . . . . . . . . . . . . . . . . . . . . . . . . . . . . . . Wheel 9 | . . . . . . 2 . . . . . 2 . 3 . . . . 2 . . . . . . . . . . . . Hover . | . . . . . . . . . . . . . . . . . . . . . . . . . . . . . . . . Flight . | . . . . . . . . . . . . . . . . . . . . . . . . . . . . . . . . Utility 103 | 2 2 4 . . . 1 2 2 . . . . 3 6 1 . . 5 2 3 . 1 . 3 13 7 . 6 24 8 8 Device 43 | . . 1 . . . . 1 . . . . . 2 3 1 . . 1 1 1 . . . . 6 3 . 5 11 5 2 Storage 24 | 2 2 1 . . . 1 . 2 . . . . . . . . . 3 . . . . . 1 2 1 . 1 7 1 . Processor 4 | . . 1 . . . . . . . . . . . . . . . . . . . . . . 1 . . . 1 . 1 Hackware 4 | . . . . . . . . . . . . . . . . . . . . . . . . 1 1 1 . . 1 . . Protection 28 | . . 1 . . . . 1 . . . . . 1 3 . . . 1 1 2 . 1 . 1 3 2 . . 4 2 5 Artifact . | . . . . . . . . . . . . . . . . . . . . . . . . . . . . . . . . Weapon 141 | 2 5 4 1 . 2 11 . 2 . . . 4 8 7 5 . . 4 7 1 3 4 1 4 18 1 . 6 20 7 14 Energy Gun 6 | . 1 . . . . 1 . . . . . . . . . . . . . . . . . . 1 . . . 3 . . Energy Cannon 6 | . . . . . . . . . . . . . . . . . . . . . . 1 . . 1 . . . 4 . . Ballistic Gun 66 | 2 1 2 . . 1 6 . 2 . . . 3 3 4 1 . . 1 3 . 1 . . 3 5 1 . 3 11 4 9 Ballistic Cannon 13 | . . . . . . . . . . . . . 1 . 3 . . 1 . 1 1 . . . 6 . . . . . . Launcher 19 | . 1 1 1 . 1 . . . . . . 1 3 . 1 . . 1 2 . . . 1 . 4 . . . 1 1 . Special Weapon 8 | . 1 1 . . . 2 . . . . . . . . . . . 1 . . . 2 . . 1 . . . . . . Impact Weapon . | . . . . . . . . . . . . . . . . . . . . . . . . . . . . . . . . Slashing Weapon 9 | . . . . . . 2 . . . . . . . . . . . . 1 . 1 1 . 1 . . . 3 . . . Piercing Weapon 12 | . . . . . . . . . . . . . . 3 . . . . 1 . . . . . . . . . 1 2 5 Special Melee Weapon 2 | . 1 . . . . . . . . . . . 1 . . . . . . . . . . . . . . . . . . Unidentified Prototypes 13 | . . . . . . . . . . . . . . 1 . . . 2 1 . . 3 . . . 2 . . 1 3 . Parts Lost 50 | . . . . . 1 2 . . . . . . 8 . 5 . . . 2 1 2 . 1 . 6 . . 9 3 . 10 Power 3 | . . . . . . . . . . . . . 1 . . . . . . . . . . . . . . 2 . . . Propulsion 3 | . . . . . . . . . . . . . 1 . . . . . . . . . . . . . . 2 . . . Utility 11 | . . . . . . . . . . . . . . . 1 . . . . . . . . . 1 . . 1 2 . 6 Weapon 33 | . . . . . 1 2 . . . . . . 6 . 4 . . . 2 1 2 . 1 . 5 . . 4 1 . 4 Highest Loss Streak 7 | . . . . . 1 1 . . . . . . 4 . 5 . . . 2 1 1 . 1 . 2 . . 7 1 . 7 Average Slot Usage (%) 88 | . 100 98 100 100 99 92 92 91 92 92 92 92 89 89 90 93 93 93 87 88 87 85 88 87 88 88 89 87 80 84 82 Engine 3 | . 9 9 11 11 11 9 7 2 . . . . 3 6 6 6 6 6 5 5 5 1 . 5 5 . . . . . . Core 1 | . 4 1 . . . . . . . . . . . . . . . . . . . . . . 3 9 10 5 . . . Reactor 4 | . . . . . . . . 4 7 7 7 7 3 . . . . . . . . 3 5 5 1 . . 3 8 12 11 Treads 8 | . 28 22 22 22 22 4 . . . . . . 5 1 3 6 6 6 4 11 11 11 11 10 10 10 10 9 9 7 7 Wheel 1 | . . . . . . 6 7 7 7 7 7 6 1 4 2 . . . 6 . . . . . . . . . . . . Device 8 | . . 2 . . . . 7 1 . . . . 6 9 11 13 13 10 1 3 . . . . 3 3 5 9 23 24 19 Storage 27 | . 28 30 33 33 33 27 23 35 38 38 38 38 38 33 33 33 33 33 35 35 35 35 35 31 31 34 36 33 9 13 11 Processor 3 | . . 6 11 11 11 9 7 7 7 7 7 7 . . . . . . . . . . . . 4 1 . . 3 4 3 Protection 4 | . . 3 . . . . 7 . . . . . . 6 6 6 6 8 9 7 11 8 11 13 5 4 5 2 3 4 7 Ballistic Gun 14 | . 25 17 11 11 11 30 23 28 30 30 30 29 18 19 6 6 6 4 4 17 11 4 . 9 4 20 21 18 10 16 19 Ballistic Cannon 4 | . . . . . . . . . . . . . 3 3 18 20 20 21 14 2 10 8 5 1 9 . . . . . . Launcher 1 | . . 3 11 11 10 . . . . . . . 2 1 . . . . . 2 . . 3 . 1 . . . . . . Naked Turns 94 | . . . . . . . . . . . . . . . . . . . . . . . . . . . . 1 5 . 88 Heaviest Build 216 | 16 42 63 61 61 62 78 82 125 125 125 125 127 132 145 149 149 149 172 172 162 165 164 158 197 215 212 210 216 127 177 191 Greatest Support 160 | 40 40 40 43 43 43 43 28 28 28 28 28 70 70 70 70 70 70 70 140 140 140 140 140 140 140 160 160 160 140 160 160 Greatest Overweight (x) 5 | . 1 1 1 1 1 2 2 4 4 4 4 4 4 5 5 2 2 2 3 1 1 1 1 1 1 1 1 2 1 2 1 Average Overweight (x) 1 | . . 1 1 1 1 1 2 3 4 4 4 3 1 4 3 2 2 2 1 1 1 1 1 1 1 1 1 1 . . . Largest Inventory Capacity 50 | 8 16 22 22 22 22 24 24 36 36 36 36 36 36 36 36 36 36 42 42 42 42 42 42 50 46 46 46 46 16 22 22 Average Capacity 30 | 6 13 20 22 22 22 22 24 33 36 36 36 36 36 36 36 36 36 36 42 42 42 42 42 43 44 46 46 45 7 20 21 Most Carried 46 | 5 16 22 22 22 22 24 23 32 36 36 36 36 36 36 36 33 33 39 42 42 42 42 39 44 45 46 46 46 16 22 22 Average Carried 29 | 2 11 18 22 22 21 21 22 29 33 35 36 35 29 34 32 33 33 34 40 41 41 40 38 41 43 44 45 45 7 20 20 Final Capacity 46 | 8 16 22 22 22 22 24 24 36 36 36 36 36 36 36 36 36 36 42 42 42 42 42 42 44 46 46 46 4 16 22 22 Final Carried 46 | 5 16 22 22 22 20 24 22 32 36 36 36 36 30 36 33 33 33 39 42 42 41 38 39 44 45 46 46 4 16 22 20 Class Distribution -------------------- 28% | Hauler-Mutant 17% | Hauler-Tank 11% | Hauler-Skirmisher 10% | Scavenger-Tank 8% | Hauler-Gunner 6% | Mutant 4% | Scavenger-Skirmisher 4% | Generator-Tank 3% | Scavenger-Mutant Dominant Class ---------------- Mutant | -10/Materials Hauler-Mutant | -9/Materials Hauler-Mutant | -9/Mines Hauler-Mutant | -9/Exiles Hauler-Mutant | -8/Mines Hauler-Skirmisher | -8/Materials Scavenger-Skirmisher | -7/Factory Hauler-Skirmisher | -7/Waste Hauler-Skirmisher | -7/Factory Hauler-Gunner | -7/Lower Caves Hauler-Gunner | -7/Lower Caves Hauler-Gunner | -7/Zion Hauler-Mutant | -6/Proximity Caves Hauler-Mutant | -6/Factory Hauler-Tank | -6/Lower Caves Hauler-Tank | -6/Lower Caves Hauler-Tank | -6/Data Miner Hauler-Tank | -5/Proximity Caves Hauler-Mutant | -5/Factory Hauler-Tank | -5/Upper Caves Hauler-Tank | -5/Upper Caves Hauler-Mutant | -5/Zhirov Hauler-Mutant | -4/Proximity Caves Hauler-Mutant | -4/Factory Hauler-Mutant | -4/Extension Commander-Skirmisher | -4/Cetus Hauler-Skirmisher | -4/Archives Hauler-Skirmisher | -4/Hub_04(d) Scavenger-Tank | -3/Research Generator-Tank | -2/Research Scavenger-Tank | -1/Access Resources | -11 -10 -9 -9 -9 -8 -8 -7 -7 -7 -7 -7 -7 -6 -6 -6 -6 -6 -5 -5 -5 -5 -5 -4 -4 -4 -4 -4 -4 -3 -2 -1 ----------- Run | Scr Mat Mat Min Exi Min Mat Fac Was Fac Low Low Zio Pro Fac Low Low Dat Pro Fac Upp Upp Zhi Pro Fac Ext Cet Arc Hub Res Res Acc Matter Collected 17430 | 413 597 448 89 168 32 315 . 395 . . 91 10 699 526 200 . . 522 853 561 166 121 69 . 2686 515 10 592 2062 2404 2886 Remotely . | . . . . . . . . . . . . . . . . . . . . . . . . . . . . . . . . Salvage Created 20661 | 153 690 531 98 . 78 307 . . . . 149 . 775 376 149 . . 271 584 611 219 130 53 . 2007 . . 1276 3474 4220 4510 Parts 1063 | 12 42 33 7 . 10 8 . . . . 6 . 28 19 6 . . 14 26 31 8 3 7 . 73 . . 59 218 221 232 Haulers Intercepted 8 | . . 1 . . . . . . . . . . . . . . . . . . . . . . . . . 2 3 2 . Recyclers Shooed 6 | 1 . . . . . 1 . . . . . . . . . . . . 1 . . . . . 2 . . . . 1 . Parts Field Recycled . | . . . . . . . . . . . . . . . . . . . . . . . . . . . . . . . . Retrieved Matter . | . . . . . . . . . . . . . . . . . . . . . . . . . . . . . . . . Parts Self-Destructed 102 | . . . . . . . . . . 10 6 . 29 . 2 . . 9 . 30 8 2 6 . . . . . . . . Prevented . | . . . . . . . . . . . . . . . . . . . . . . . . . . . . . . . . Kills | -11 -10 -9 -9 -9 -8 -8 -7 -7 -7 -7 -7 -7 -6 -6 -6 -6 -6 -5 -5 -5 -5 -5 -4 -4 -4 -4 -4 -4 -3 -2 -1 ------- Run | Scr Mat Mat Min Exi Min Mat Fac Was Fac Low Low Zio Pro Fac Low Low Dat Pro Fac Upp Upp Zhi Pro Fac Ext Cet Arc Hub Res Res Acc Combat Hostiles Destroyed 307 | . 17 14 6 . 7 4 . . . . 3 . 23 7 6 . . 8 5 12 4 . 5 . 30 . . 12 44 46 54 Guns 201 | . 17 6 . . . 4 . . . . 3 . 10 4 . . . . 2 7 1 . . . 5 . . 12 30 46 54 Cannons 44 | . . . . . . . . . . . . . 3 3 2 . . 3 3 1 3 . . . 15 . . . 11 . . AOE 54 | . . 8 6 . 7 . . . . . . . 10 . 4 . . 5 . 4 . . 5 . 5 . . . . . . Classes Destroyed 17 | 3 4 2 1 . 1 . . . . . . . 2 . . . . 1 . . . . . . 2 . . . . . 1 Worker 19 | 2 . 1 . . . . . . . . . . . . . . . . 3 . . . . . . . . 8 2 . 3 Builder 5 | . . . . . . . . . . . . . . . . . . . . . . . . . 1 . . 2 1 . 1 Tunneler 2 | 1 . . . . . . . . . . . . . . . . . . 1 . . . . . . . . . . . . Hauler 8 | . . 1 . . . . . . . . . . . . . . . . . . . . . . . . . 2 3 2 . Recycler 10 | 1 . . . . . 1 . . . . . . . . . . . . 2 . . . . . 3 . . 1 . 2 . Mechanic 3 | . 1 . . . . . . . . . . . . . . . . . . . . . . . . . . . . . 2 Operator 1 | . 1 . . . . . . . . . . . . . . . . . . . . . . . . . . . . . . Watcher 3 | . . . . . . . . . . . . . . . . . . . . . . . . . 1 . . 1 1 . . Swarmer 60 | . 3 . 3 . 3 . . . . . . . 7 . . . . 5 . 5 . . 5 . 5 . . . 9 9 6 Saboteur 2 | . . . . . . . . . . . . . . . . . . . . . . . . . . . . . . . 2 Grunt 108 | . 14 10 2 . 3 3 . . . . 2 . 9 4 3 . . 1 . 1 2 . . . 10 . . 2 4 18 20 Brawler 10 | . . . . . . . . . . . . . 3 . . . . . . 1 . . . . . . . . . . 6 Duelist 9 | . . . 1 . . . . . . . 1 . 2 . . . . 1 . 1 . . . . . . . . . 2 1 Sentry 35 | . . 4 . . . 1 . . . . . . 1 1 1 . . . 1 1 1 . . . 10 . . 2 6 3 3 Hunter 23 | . . . . . 1 . . . . . . . . . . . . . 2 2 . . . . 2 . . 3 6 4 3 Programmer 56 | . . . . . . . . . . . . . 1 2 2 . . . 2 . 1 . . . 1 . . 5 19 10 13 Behemoth 4 | . . . . . . . . . . . . . . . . . . 1 . 1 . . . . 2 . . . . . . Enhanced Grunt 1 | . . . . . . . . . . . . . . . . . . 1 . . . . . . . . . . . . . Decomposer 1 | . . . . . . . . . . . . . . . . . . . . 1 . . . . . . . . . . . Best Kill Streak 13 | 2 4 9 3 . 3 4 . . . . 3 . 5 2 5 . . 5 3 5 2 . 5 . 6 . . 13 4 5 12 Combat Bots Only 9 | . 4 8 3 . 3 3 . . . . 3 . 5 2 5 . . 5 2 5 2 . 5 . 6 . . 3 4 5 9 Max Kills in Single Turn 8 | 1 1 2 3 . 2 1 . . . . 1 . 2 1 2 . . 3 3 2 1 . 3 . 2 . . 8 2 3 2 Gunslinging 2 | . . . . . . . . . . . . . . . . . . . . . . . . . . . . . 1 2 1 Exploded 3 | . . 1 3 . 2 . . . . . . . 2 . 2 . . 3 . 2 . . 3 . 2 . . . . . . Melee . | . . . . . . . . . . . . . . . . . . . . . . . . . . . . . . . . Uniques/NPCs Destroyed . | . . . . . . . . . . . . . . . . . . . . . . . . . . . . . . . . Combat | -11 -10 -9 -9 -9 -8 -8 -7 -7 -7 -7 -7 -7 -6 -6 -6 -6 -6 -5 -5 -5 -5 -5 -4 -4 -4 -4 -4 -4 -3 -2 -1 -------- Run | Scr Mat Mat Min Exi Min Mat Fac Was Fac Low Low Zio Pro Fac Low Low Dat Pro Fac Upp Upp Zhi Pro Fac Ext Cet Arc Hub Res Res Acc Damage Taken 27537 | . 505 519 47 . 382 570 . . . 15 261 . 2239 705 670 . . 341 681 900 452 . 453 . 3487 139 164 4013 3403 1632 5959 Core 3923 | . 86 59 10 . 124 44 . . . 15 92 . 267 112 112 . . 12 18 39 80 . 20 . 201 . 17 778 170 64 1603 Absorbed by Shields 5240 | . . . . . . . . . . . . . . 155 60 . . . . . . . . . 470 24 49 60 1702 1149 1571 Reduced by Siege Mode 1341 | . . . . . . . . . . . . . . . 11 . . 10 17 75 6 . . . 300 . . 100 322 110 390 Core Remaining (%) 69 | 100 65 . . . 51 92 . . . . . . 46 . . . . 72 . . . . 78 . . . . 13 86 95 . Volleys Fired 816 | 12 74 43 5 . 22 22 . . . . 7 . 50 14 17 . . 11 12 21 10 7 3 . 156 . . 29 114 80 107 Largest 6 | 2 2 2 1 . 2 4 . . . . 4 . 4 4 4 . . 4 4 4 4 1 1 . 4 . . 4 4 4 6 Hottest 392 | 40 100 100 30 . 58 119 . . . . 104 . 112 138 199 . . 228 204 151 171 30 30 . 235 . . 138 392 160 230 Shots Fired 2170 | 24 136 66 5 . 23 63 . . . . 28 . 115 52 26 . . 32 42 74 38 7 3 . 298 . . 107 297 318 416 Gun 1673 | 24 129 46 . . 6 56 . . . . 28 . 91 46 3 . . 2 24 54 23 . . . 57 . . 107 243 318 416 Cannon 337 | . . . . . . . . . . . . . 12 6 13 . . 26 18 17 15 . . . 177 . . . 53 . . Launcher 97 | . . 16 5 . 17 . . . . . . . 12 . 10 . . 2 . 3 . . 3 . 28 . . . 1 . . Special 63 | . 7 4 . . . 7 . . . . . . . . . . . 2 . . . 7 . . 36 . . . . . . Kinetic 1918 | 24 125 46 . . 6 55 . . . . 28 . 103 52 16 . . 28 42 71 38 . . . 230 . . 107 213 318 416 Thermal 83 | . 11 4 . . . 8 . . . . . . . . . . . 2 . . . 4 . . 4 . . . 50 . . Explosive 69 | . . 16 5 . 17 . . . . . . . 12 . 10 . . 2 . 3 . . 3 . . . . . 1 . . Electromagnetic 61 | . . . . . . . . . . . . . . . . . . . . . . . . . 28 . . . 33 . . Robot Hit Streak 49 | 8 17 16 . . 3 12 . . . . 5 . 9 26 9 . . 5 18 14 24 10 . . 22 . . 21 32 29 49 Robot Miss Streak 9 | 3 4 3 1 . 5 2 . . . . 2 . 4 3 1 . . 2 2 1 1 . . . 9 . . 4 2 4 5 Penetration Max 2 | . . . . . . . . . . . . . 1 1 . . . . 1 2 . . . . 1 . . 1 1 2 1 Secondary Targets 46 | . 3 . . . . 1 . . . . 2 . 3 . . . . . . . . . . . . . . . 8 13 16 Max Gunslinging Chain 2 | . 1 . . . . 1 . . . . 1 . 1 . . . . . . . . . . . . . . . 1 2 2 Shots Hit Robots 1517 | 14 93 45 . . 4 39 . . . . 18 . 69 36 21 . . 20 29 55 32 14 . . 175 . . 76 215 244 318 Core Hits 753 | 7 38 32 9 . 20 13 . . . . 8 . 51 15 18 . . 16 18 30 9 2 9 . 81 . . 50 71 117 139 Critical Hits 417 | . . . . . . . . . . . . . 6 2 5 . . 6 13 10 5 . . . 42 . . 6 72 118 132 Critical Kills 162 | . . . . . . . . . . . . . 2 2 2 . . . 5 2 . . . . 10 . . 2 39 47 51 Critical Parts Destroyed 220 | . . . . . . . . . . . . . 3 . 2 . . 6 8 6 4 . . . 23 . . 3 28 67 70 Melee Attacks 184 | . 2 . . . . 4 . . . . . . 1 27 . . . . 25 . 4 7 . 13 41 . . 24 6 3 27 Impact . | . . . . . . . . . . . . . . . . . . . . . . . . . . . . . . . . Slashing 105 | . . . . . . 4 . . . . . . . . . . . . 12 . 4 7 . 13 41 . . 24 . . . Piercing 76 | . . . . . . . . . . . . . . 27 . . . . 13 . . . . . . . . . 6 3 27 Sneak Attacks 4 | . 2 . . . . . . . . . . . 1 . . . . . 1 . . . . . . . . . . . . Combat Hostiles . | . . . . . . . . . . . . . . . . . . . . . . . . . . . . . . . . Follow-up Attacks . | . . . . . . . . . . . . . . . . . . . . . . . . . . . . . . . . Damage Inflicted 31814 | 176 958 985 351 . 644 475 . . . . 234 . 2978 748 906 . . 975 706 1320 601 1017 242 . 4898 . . 3267 4030 2121 4182 Guns 16352 | 176 958 483 . . 90 475 . . . . 234 . 1361 642 43 . . 44 334 817 350 . . . 599 . . 2094 1799 2121 3732 Cannons 6824 | . . . . . . . . . . . . . 262 106 164 . . 451 237 154 251 . . . 2968 . . . 2231 . . Explosions 7374 | . . 502 351 . 554 . . . . . . . 1355 . 699 . . 473 . 349 . . 242 . 1331 . . 1173 . . 345 Melee 1101 | . . . . . . . . . . . . . . . . . . . 135 . . 966 . . . . . . . . . Ramming 105 | . . . . . . . . . . . . . . . . . . . . . . . . . . . . . . . 105 Kinetic 20110 | 176 907 483 . . 90 475 . . . . 234 . 1623 748 207 . . 495 571 971 601 . . . 3473 . . 2094 1109 2121 3732 Thermal 2350 | . 51 . . . . . . . . . . . . . . . . 7 . . . 51 . . 94 . . . 2147 . . Explosive 4870 | . . 502 351 . 554 . . . . . . . 1355 . 699 . . 473 . 349 . . 242 . . . . . . . 345 Electromagnetic 3278 | . . . . . . . . . . . . . . . . . . . . . . . . . 1331 . . 1173 774 . . Impact . | . . . . . . . . . . . . . . . . . . . . . . . . . . . . . . . . Slashing 1101 | . . . . . . . . . . . . . . . . . . . 135 . . 966 . . . . . . . . . Piercing . | . . . . . . . . . . . . . . . . . . . . . . . . . . . . . . . . Highest Corruption 30 | . . . . . . 6 . . . . . . . 2 4 4 4 4 . . 3 3 3 . 2 2 2 30 14 4 28 Average Corruption 4 | . . . . . . 4 . . . . . . . 1 3 4 4 4 . . 3 3 3 . 1 2 2 3 5 2 12 Corruption Purged . | . . . . . . . . . . . . . . . . . . . . . . . . . . . . . . . . Effects 400 | . . . . . . 10 . . . . . . . 6 23 17 3 21 . . 2 10 6 . 31 4 2 18 83 26 138 Message Errors 91 | . . . . . . 2 . . . . . . . . 6 7 . 5 . . 2 5 3 . 13 1 1 7 14 5 20 Matter Fused 49 | . . . . . . 3 . . . . . . . . 5 2 . 5 . . . 1 1 . . . . 3 16 3 10 Heat Flow Errors 30 | . . . . . . 1 . . . . . . . 1 2 2 2 1 . . . . 1 . 3 1 . 2 4 4 6 Energy Discharges 48 | . . . . . . 1 . . . . . . . 1 4 4 . 5 . . . 1 . . 7 1 1 1 8 2 12 Parts Rejected 2 | . . . . . . . . . . . . . . . . . . . . . . . . . . . . 2 . . . Data Loss (minor) 47 | . . . . . . 1 . . . . . . . 2 4 2 1 2 . . . 2 1 . 5 1 . 2 9 5 10 Data Loss (major) 6 | . . . . . . . . . . . . . . . . . . . . . . . . . . . . . 3 . 3 Misfires 5 | . . . . . . . . . . . . . . . . . . . . . . . . . . . . . 2 . 3 Alerts 3 | . . . . . . . . . . . . . . . . . . . . . . . . . . . . . . . 3 Misdirections 16 | . . . . . . . . . . . . . . . . . . . . . . . . . . . . . 4 . 12 Targeting Errors 85 | . . . . . . 2 . . . . . . . . 2 . . 3 . . . 1 . . 2 . . 1 18 5 51 Weapon Failures 18 | . . . . . . . . . . . . . . 2 . . . . . . . . . . 1 . . . 5 2 8 Overload Shots . | . . . . . . . . . . . . . . . . . . . . . . . . . . . . . . . . Overflow Damage 536 | . . 13 . . . . . . . . . . 61 . . . . . 95 1 . 133 . . 61 . . 27 145 . . Projectiles 173 | . . . . . . . . . . . . . . . . . . . . . . . . . 28 . . . 145 . . Explosions 135 | . . 13 . . . . . . . . . . 61 . . . . . . 1 . . . . 33 . . 27 . . . Melee 228 | . . . . . . . . . . . . . . . . . . . 95 . . 133 . . . . . . . . . Knockbacks 37 | . . . . . . . . . . . . . 1 . 2 . . 10 2 . 3 . . . 19 . . . . . . Impact . | . . . . . . . . . . . . . . . . . . . . . . . . . . . . . . . . Kinetic 34 | . . . . . . . . . . . . . 1 . 2 . . 10 2 . 3 . . . 16 . . . . . . Secondary 3 | . . . . . . . . . . . . . . . . . . . . . . . . . 3 . . . . . . Self-Inflicted Damage 1030 | . . 38 32 . 40 . . . . . . . 277 . 125 . . . . 16 . . . . 37 . . 156 116 . 193 Shots 18 | . . 1 1 . 2 . . . . . . . 6 . 2 . . . . 1 . . . . 1 . . 2 1 . 1 Rammed 4 | . . . . . . . . . . . . . . . . . . . . . . . . . . . . . . . 4 Targets Rammed 4 | . . . . . . . . . . . . . . . . . . . . . . . . . . . . . . . 4 Kicked . | . . . . . . . . . . . . . . . . . . . . . . . . . . . . . . . . Crushed . | . . . . . . . . . . . . . . . . . . . . . . . . . . . . . . . . Highest Temperature 503 | . 56 5 . . 14 252 . . . . 118 . 199 144 189 165 169 282 412 482 349 16 114 2 503 110 . 417 296 456 417 Average Temperature 104 | . 14 2 . . 4 67 . . . . 63 . 98 47 62 82 81 124 130 198 154 10 58 1 131 54 . 109 96 119 98 Received Heat Transfer 3019 | . 237 210 6 . 135 180 . . . . 111 . 654 48 132 . . 90 69 108 45 . 45 . 342 10 21 135 33 111 297 Effects 35 | . . . . . . . . . . . . . . . . . . . 1 3 . . . . 15 . . 2 . 3 11 Shutdowns 12 | . . . . . . . . . . . . . . . . . . . . 2 . . . . 5 . . 1 . 1 3 Energy Bleed 2 | . . . . . . . . . . . . . . . . . . . . . . . . . 2 . . . . . . Interference 9 | . . . . . . . . . . . . . . . . . . . . . . . . . 3 . . . . 1 5 Matter Decay 3 | . . . . . . . . . . . . . . . . . . . . 1 . . . . 1 . . . . . 1 Short Circuit 3 | . . . . . . . . . . . . . . . . . . . . . . . . . . . . 1 . 1 1 Damage (minor) 3 | . . . . . . . . . . . . . . . . . . . 1 . . . . . 1 . . . . . 1 Damage (major) 3 | . . . . . . . . . . . . . . . . . . . . . . . . . 3 . . . . . . Siege Activations 92 | . . . . . . . . . . . . . . 4 1 . . 2 3 3 3 . . . 13 . . 8 20 18 17 Total Turns 1493 | . . . . . . . . . . . . . . 38 14 . . 24 40 62 36 . . . 278 . . 126 372 242 261 Longest Duration 70 | . . . . . . . . . . . . . . 13 14 . . 20 20 29 21 . . . 47 . . 43 62 27 70 Robots Corrupted 12 | . . . . . . . . . . . . . . . . . . . . . . . . . 6 . . 2 4 . . Combat Hostiles 8 | . . . . . . . . . . . . . . . . . . . . . . . . . 5 . . . 3 . . Parts Fried 30 | . . . . . . . . . . . . . . . . . . . . . . . . . 10 . . 13 7 . . Impact Corruptions . | . . . . . . . . . . . . . . . . . . . . . . . . . . . . . . . . Robots Melted . | . . . . . . . . . . . . . . . . . . . . . . . . . . . . . . . . Combat Hostiles . | . . . . . . . . . . . . . . . . . . . . . . . . . . . . . . . . Parts Melted 17 | . . . . . . . . . . . 1 . . . . . . . . . . . . . . . . . 16 . . Heat Transferred 1952 | . 148 . . . . . . . . . . . . . . . . 37 . . . 148 . . 111 . . . 1508 . . Parts Sabotaged 4 | . . . . . . . . . . . . . . . . . . . . . . . . . . . . . . . 4 Parts Stolen . | . . . . . . . . . . . . . . . . . . . . . . . . . . . . . . . . Parts Stripped . | . . . . . . . . . . . . . . . . . . . . . . . . . . . . . . . . Power Chain Reactions 2 | . . . . . . . . . . . . . . . . . . . . . . . . . 1 . . 1 . . . Missiles Intercepted . | . . . . . . . . . . . . . . . . . . . . . . . . . . . . . . . . Alert | -11 -10 -9 -9 -9 -8 -8 -7 -7 -7 -7 -7 -7 -6 -6 -6 -6 -6 -5 -5 -5 -5 -5 -4 -4 -4 -4 -4 -4 -3 -2 -1 ------- Run | Scr Mat Mat Min Exi Min Mat Fac Was Fac Low Low Zio Pro Fac Low Low Dat Pro Fac Upp Upp Zhi Pro Fac Ext Cet Arc Hub Res Res Acc Peak Influence 2134 | 20 376 461 285 . 259 169 15 38 426 . . . . 201 . . . . 145 . . . . 46 491 868 493 955 1154 1350 2134 Initial 809 | . 13 111 115 . . 22 . 5 . . . . . 81 . . . . 100 . . . . . 22 242 324 172 405 648 809 Average 466 | 6 186 256 239 . 142 61 12 16 257 . . . . 103 . . . . 74 . . . . 25 254 564 462 278 567 910 1446 Maximum Alert Level 5 | . 1 2 1 . 1 . . . 2 . . . . 1 . . . . . . . . . . 2 3 2 3 4 4 5 Low Security (%) 38 | 100 52 31 1 . 88 100 100 100 35 . . . . 96 . . . . 100 . . . . 100 49 . . 39 . . . Level 1 18 | . 47 64 98 . 11 . . . 53 . . . . 3 . . . . . . . . . . 10 23 17 49 30 . . Level 2 18 | . . 3 . . . . . . 11 . . . . . . . . . . . . . . . 39 54 82 . 41 23 . Level 3 13 | . . . . . . . . . . . . . . . . . . . . . . . . . . 22 . 11 25 48 21 Level 4 7 | . . . . . . . . . . . . . . . . . . . . . . . . . . . . . 1 28 39 Level 5 2 | . . . . . . . . . . . . . . . . . . . . . . . . . . . . . . . 26 High Security 1 | . . . . . . . . . . . . . . . . . . . . . . . . . . . . . . . 12 Max Security . | . . . . . . . . . . . . . . . . . . . . . . . . . . . . . . . . Squads Dispatched 84 | . 8 5 . . . . . . 3 . . . 1 5 . . . . 2 . . . . 1 3 . . 3 12 17 24 Investigation 9 | . 3 1 . . . . . . . . . . . . . . . . . . . . . 1 . . . . 1 2 1 Extermination 20 | . . . . . . . . . . . . . . 2 . . . . 1 . . . . . . . . 2 8 4 3 Reinforcement 23 | . 5 4 . . . . . . 3 . . . . 3 . . . . . . . . . . 3 . . 1 1 2 1 Assault 25 | . . . . . . . . . . . . . 1 . . . . . . . . . . . . . . . 2 6 16 Garrison 7 | . . . . . . . . . . . . . . . . . . . 1 . . . . . . . . . . 3 3 Intercept . | . . . . . . . . . . . . . . . . . . . . . . . . . . . . . . . . Construction Impeded 2 | . . . . . . . . . 1 . . . . . . . . . . . . . . . 1 . . . . . . Haulers Reinforced 3 | . . . . . . . . . . . . . . . . . . . . . . . . . . . . . . 2 1 Stealth | -11 -10 -9 -9 -9 -8 -8 -7 -7 -7 -7 -7 -7 -6 -6 -6 -6 -6 -5 -5 -5 -5 -5 -4 -4 -4 -4 -4 -4 -3 -2 -1 --------- Run | Scr Mat Mat Min Exi Min Mat Fac Was Fac Low Low Zio Pro Fac Low Low Dat Pro Fac Upp Upp Zhi Pro Fac Ext Cet Arc Hub Res Res Acc Distress Signals 24 | . 4 4 . . . . . . . 1 . . . . . . . . . . . . . . 2 2 . 5 1 1 4 Communications Jammed . | . . . . . . . . . . . . . . . . . . . . . . . . . . . . . . . . Distress Signals . | . . . . . . . . . . . . . . . . . . . . . . . . . . . . . . . . Times Spotted 528 | . 42 28 7 . 5 6 . 6 2 7 4 . 29 17 8 . . 18 8 15 4 . 7 . 42 25 3 43 56 61 85 Peak Tracking Total 21 | . 5 6 4 . 3 4 . 2 1 3 3 . 7 4 5 . . 5 5 5 2 . 5 . 6 10 2 18 5 7 21 Tactical Retreats 32 | . 3 1 . . . 1 . . . . 1 . . 2 2 . . 4 . 2 . . . . 4 . . 1 2 5 4 Traps | -11 -10 -9 -9 -9 -8 -8 -7 -7 -7 -7 -7 -7 -6 -6 -6 -6 -6 -5 -5 -5 -5 -5 -4 -4 -4 -4 -4 -4 -3 -2 -1 ------- Run | Scr Mat Mat Min Exi Min Mat Fac Was Fac Low Low Zio Pro Fac Low Low Dat Pro Fac Upp Upp Zhi Pro Fac Ext Cet Arc Hub Res Res Acc Traps Triggered 19 | . 1 . . . . 1 1 . 1 . . . . 7 . . . . . . . . . . 3 . . . 2 2 1 Indirectly . | . . . . . . . . . . . . . . . . . . . . . . . . . . . . . . . . Trap Hack Attempts . | . . . . . . . . . . . . . . . . . . . . . . . . . . . . . . . . Triggered . | . . . . . . . . . . . . . . . . . . . . . . . . . . . . . . . . Disarmed . | . . . . . . . . . . . . . . . . . . . . . . . . . . . . . . . . Reprogrammed 4 | . . . . . . . . . . . . . . . . . . . . . . . . . . . . . 4 . . Reused . | . . . . . . . . . . . . . . . . . . . . . . . . . . . . . . . . Traps Extracted . | . . . . . . . . . . . . . . . . . . . . . . . . . . . . . . . . Installed . | . . . . . . . . . . . . . . . . . . . . . . . . . . . . . . . . Triggered 4 | . . . . . . . . . . 2 1 . . . 1 . . . . . . . . . . . . . . . . Machines | -11 -10 -9 -9 -9 -8 -8 -7 -7 -7 -7 -7 -7 -6 -6 -6 -6 -6 -5 -5 -5 -5 -5 -4 -4 -4 -4 -4 -4 -3 -2 -1 ---------- Run | Scr Mat Mat Min Exi Min Mat Fac Was Fac Low Low Zio Pro Fac Low Low Dat Pro Fac Upp Upp Zhi Pro Fac Ext Cet Arc Hub Res Res Acc Machines Disabled 31 | . . 2 1 . 1 . . . . . . . 1 . 3 . . . . . . . . . 6 1 2 9 2 . 3 Max in Single Turn 3 | . . 1 1 . 1 . . . . . . . 1 . 1 . . . . . . . . . 3 . . 3 2 . 1 Garrison Access 2 | . . . . . . 1 . . . . . . . . . . . . . . . . . . . . . . . . 1 Network Hub 4 | . . . . . . . . . . . . . . . . . . . . . . . . . . . . 4 . . . Machines Sabotaged . | . . . . . . . . . . . . . . . . . . . . . . . . . . . . . . . . Garrisons Compromised . | . . . . . . . . . . . . . . . . . . . . . . . . . . . . . . . . Overloaded Fab Kills . | . . . . . . . . . . . . . . . . . . . . . . . . . . . . . . . . Fab Network Shutdowns . | . . . . . . . . . . . . . . . . . . . . . . . . . . . . . . . . Hacking | -11 -10 -9 -9 -9 -8 -8 -7 -7 -7 -7 -7 -7 -6 -6 -6 -6 -6 -5 -5 -5 -5 -5 -4 -4 -4 -4 -4 -4 -3 -2 -1 --------- Run | Scr Mat Mat Min Exi Min Mat Fac Was Fac Low Low Zio Pro Fac Low Low Dat Pro Fac Upp Upp Zhi Pro Fac Ext Cet Arc Hub Res Res Acc Machines Accessed 71 | . 4 5 . 2 . 4 1 . 1 . . 1 . 7 2 . 4 . 2 . . 8 . 6 1 1 1 9 7 2 3 Terminals 39 | . 2 4 . . . 2 . . 1 . . . . 4 . . . . 1 . . . . 4 1 1 . 8 6 2 3 Fabricators 3 | . . . . . . . . . . . . . . 1 . . . . 1 . . . . 1 . . . . . . . Repair Stations 2 | . . . . . . . 1 . . . . . . . . . . . . . . . . 1 . . . . . . . Recycling Units 4 | . 2 1 . . . . . . . . . . . . . . . . . . . . . . . . . . 1 . . Scanalyzers 2 | . . . . . . 1 . . . . . . . 1 . . . . . . . . . . . . . . . . . Garrison Access 3 | . . . . . . 1 . . . . . . . 1 . . . . . . . . . . . . . 1 . . . Total Hacks 297 | . 7 9 . 24 . 17 1 . 2 . . 4 . 22 8 . 28 . 6 . . 47 . 14 1 1 25 17 48 12 4 Successful 213 | . 4 4 . 24 . 14 . . 2 . . 4 . 11 8 . 28 . 5 . . 47 . 6 . 1 25 4 23 2 1 Failed 83 | . 3 5 . . . 3 1 . . . . . . 11 . . . . 1 . . . . 8 1 . . 13 24 10 3 Catastrophic 18 | . 1 . . . . . . . . . . . . 1 . . . . . . . . . 1 . . . 2 9 3 1 Database Lockouts 1 | . . . . . . . . . . . . . . . . . . . . . . . . . . . . . 1 . . Manual 19 | . 6 1 . 1 . 2 . . . . . 1 . 4 . . . . . . . . . . 1 1 . 2 . . . Terminals 115 | . 3 8 . . . 3 . . 2 . . . . 10 . . . . 1 . . . . 8 1 1 . 15 47 12 4 Fabricators 12 | . . . . . . . . . . . . . . 4 . . . . 5 . . . . 3 . . . . . . . Repair Stations 4 | . . . . . . . 1 . . . . . . . . . . . . . . . . 3 . . . . . . . Recycling Units 6 | . 4 1 . . . . . . . . . . . . . . . . . . . . . . . . . . 1 . . Scanalyzers 20 | . . . . . . 13 . . . . . . . 7 . . . . . . . . . . . . . . . . . Garrison Access 4 | . . . . . . 1 . . . . . . . 1 . . . . . . . . . . . . . 2 . . . Terminal Hacks 179 | . 1 3 . 24 . 1 . . 2 . . 4 . 3 8 . 28 . 1 . . 47 . 2 . 1 25 4 22 2 1 Record 111 | . . . . 23 . . . . . . . . . . 7 . 11 . . . . 35 . . . . 25 . 10 . . Part Schematic 16 | . . . . . . . . . . . . 4 . . . . 8 . . . . 4 . . . . . . . . . Robot Schematic 6 | . . . . . . . . . . . . . . . . . 6 . . . . . . . . . . . . . . Robot Analysis 5 | . 1 . . . . . . . . . . . . . . . . . . . . 4 . . . . . . . . . Prototype ID Bank 7 | . . . . . . . . . . . . . . . . . 3 . . . . 4 . . . . . . . . . Open Door 3 | . . . . . . . . . . . . . . . 1 . . . . . . . . 1 . 1 . . . . . Level Access Points 1 | . . . . . . . . . . . . . . . . . . . . . . . . . . . . 1 . . . Branch Access Points 1 | . . . . . . . . . . . . . . . . . . . . . . . . . . . . . . . 1 Emergency Access Points 3 | . . . . . . . . . . . . . . . . . . . . . . . . . . . . . 2 1 . Terminal Index 1 | . . . . . . . . . . . . . . . . . . . . . . . . . . . . . 1 . . Scanalyzer Index 1 | . . . . . . . . . . . . . . . . . . . . . . . . . . . . . 1 . . Alert Level 2 | . . . . . . . . . . . . . . . . . . . . . . . . . . . . . 2 . . Unreport Threat 2 | . . 1 . . . . . . . . . . . 1 . . . . . . . . . . . . . . . . . Locate Traps 5 | . . . . . . . . . . . . . . . . . . . . . . . . 1 . . . 3 1 . . Reprogram Traps 1 | . . . . . . . . . . . . . . . . . . . . . . . . . . . . . 1 . . Maintenance Status 1 | . . . . . . . . . . . . . . . . . . . . . . . . . . . . . 1 . . Security Status 1 | . . . . . . . . . . . . . . . . . . . . . . . . . . . . . 1 . . Transport Status 1 | . . . . . . . . . . . . . . . . . . . . . . . . . . . . . 1 . . Hauler Manifests 2 | . . . . . . 1 . . 1 . . . . . . . . . . . . . . . . . . . . . . Zone Layout 8 | . . 2 . . . . . . 1 . . . . 2 . . . . 1 . . . . . . . . . 1 1 . EX-Prototype ID Bank 1 | . . . . 1 . . . . . . . . . . . . . . . . . . . . . . . . . . . Fabricator Hacks 9 | . . . . . . . . . . . . . . 3 . . . . 4 . . . . 2 . . . . . . . Load Schematic 3 | . . . . . . . . . . . . . . 1 . . . . 1 . . . . 1 . . . . . . . Build 6 | . . . . . . . . . . . . . . 2 . . . . 3 . . . . 1 . . . . . . . Repair Station Hacks 2 | . . . . . . . . . . . . . . . . . . . . . . . . 2 . . . . . . . Scan Component 1 | . . . . . . . . . . . . . . . . . . . . . . . . 1 . . . . . . . Repair 1 | . . . . . . . . . . . . . . . . . . . . . . . . 1 . . . . . . . Recycling Unit Hacks 2 | . 1 . . . . . . . . . . . . . . . . . . . . . . . . . . . 1 . . Retrieve Components 2 | . 1 . . . . . . . . . . . . . . . . . . . . . . . . . . . 1 . . Scanalyzer 17 | . . . . . . 12 . . . . . . . 5 . . . . . . . . . . . . . . . . . Insert Component 9 | . . . . . . 6 . . . . . . . 3 . . . . . . . . . . . . . . . . . Analyze 8 | . . . . . . 6 . . . . . . . 2 . . . . . . . . . . . . . . . . . Garrison Access Hacks 1 | . . . . . . 1 . . . . . . . . . . . . . . . . . . . . . . . . . Seal Access 1 | . . . . . . 1 . . . . . . . . . . . . . . . . . . . . . . . . . Unauthorized Hacks 3 | . 2 1 . . . . . . . . . . . . . . . . . . . . . . . . . . . . . Terminals . | . . . . . . . . . . . . . . . . . . . . . . . . . . . . . . . . Fabricators . | . . . . . . . . . . . . . . . . . . . . . . . . . . . . . . . . Repair Stations . | . . . . . . . . . . . . . . . . . . . . . . . . . . . . . . . . Recycling Units 3 | . 2 1 . . . . . . . . . . . . . . . . . . . . . . . . . . . . . Tunnel 3 | . 2 1 . . . . . . . . . . . . . . . . . . . . . . . . . . . . . Scanalyzers . | . . . . . . . . . . . . . . . . . . . . . . . . . . . . . . . . Garrison Access . | . . . . . . . . . . . . . . . . . . . . . . . . . . . . . . . . Data Cores Recovered . | . . . . . . . . . . . . . . . . . . . . . . . . . . . . . . . . Used . | . . . . . . . . . . . . . . . . . . . . . . . . . . . . . . . . Hacking Detections 38 | . 3 3 . . . 3 1 . 1 . . . . 7 . . . . . . . . . 5 . . . 7 5 2 1 Full Trace Events 3 | . . . . . . . . . . . . . . . . . . . . . . . . 1 . . . . 1 1 . Feedback Events . | . . . . . . . . . . . . . . . . . . . . . . . . . . . . . . . . Feedback Blocked . | . . . . . . . . . . . . . . . . . . . . . . . . . . . . . . . . Robot Schematics Acquired 6 | . . . . . . . . . . . . . . . . . 6 . . . . . . . . . . . . . . Robots Built . | . . . . . . . . . . . . . . . . . . . . . . . . . . . . . . . . Matter . | . . . . . . . . . . . . . . . . . . . . . . . . . . . . . . . . Time . | . . . . . . . . . . . . . . . . . . . . . . . . . . . . . . . . Total Robot Build Rating . | . . . . . . . . . . . . . . . . . . . . . . . . . . . . . . . . Part Schematics Acquired 24 | . . . . . . 6 . . . . . 4 . 2 . . 8 . . . . 4 . . . . . . . . . Parts Built 11 | . . . . . . . . . . . . . . 4 . . . . 6 . . . . 1 . . . . . . . Matter 1257 | . . . . . . . . . . . . . . 336 . . . . 636 . . . . 285 . . . . . . . Time 478 | . . . . . . . . . . . . . . 84 . . . . 318 . . . . 76 . . . . . . . Total Part Build Rating 57 | . . . . . . . . . . . . . . 16 . . . . 36 . . . . 5 . . . . . . . Parts Repaired 1 | . . . . . . . . . . . . . . . . . . . . . . . . 1 . . . . . . . Time 25 | . . . . . . . . . . . . . . . . . . . . . . . . 25 . . . . . . . Parts Recycled . | . . . . . . . . . . . . . . . . . . . . . . . . . . . . . . . . Recycled Matter . | . . . . . . . . . . . . . . . . . . . . . . . . . . . . . . . . Retrieved Matter . | . . . . . . . . . . . . . . . . . . . . . . . . . . . . . . . . Retrieved Components 12 | . 9 . . . . . . . . . . . . . . . . . . . . . . . . . . . 3 . . Parts Scanalyzed 9 | . . . . . . 6 . . . . . . . 3 . . . . . . . . . . . . . . . . . Part Schematics Acquired 8 | . . . . . . 6 . . . . . . . 2 . . . . . . . . . . . . . . . . . Parts Damaged 1 | . . . . . . 1 . . . . . . . . . . . . . . . . . . . . . . . . . Bothacking | -11 -10 -9 -9 -9 -8 -8 -7 -7 -7 -7 -7 -7 -6 -6 -6 -6 -6 -5 -5 -5 -5 -5 -4 -4 -4 -4 -4 -4 -3 -2 -1 ------------ Run | Scr Mat Mat Min Exi Min Mat Fac Was Fac Low Low Zio Pro Fac Low Low Dat Pro Fac Upp Upp Zhi Pro Fac Ext Cet Arc Hub Res Res Acc Used RIF Installer . | . . . . . . . . . . . . . . . . . . . . . . . . . . . . . . . . Robots Hacked 4 | . 1 . . . . . . . . . . . . . . . . . . . . 3 . . . . . . . . . Non-combat 1 | . 1 . . . . . . . . . . . . . . . . . . . . . . . . . . . . . . Combat 3 | . . . . . . . . . . . . . . . . . . . . . . 3 . . . . . . . . . Robot Hacks Applied 5 | . 2 . . . . . . . . . . . . . . . . . . . . 3 . . . . . . . . . parse_system 4 | . 1 . . . . . . . . . . . . . . . . . . . . 3 . . . . . . . . . no_distress 1 | . 1 . . . . . . . . . . . . . . . . . . . . . . . . . . . . . . Relay Couplers Released 4 | . . . . . . . . . . . . . . . . . . . . . . . . . . . . . . . 4 Programmers 4 | . . . . . . . . . . . . . . . . . . . . . . . . . . . . . . . 4 Robots Rewired 17 | . . . . . . . . . . . . . 2 . . . . . . . . . . . 15 . . . . . . Allies Hacked . | . . . . . . . . . . . . . . . . . . . . . . . . . . . . . . . . Hacks Repelled . | . . . . . . . . . . . . . . . . . . . . . . . . . . . . . . . . Allies | -11 -10 -9 -9 -9 -8 -8 -7 -7 -7 -7 -7 -7 -6 -6 -6 -6 -6 -5 -5 -5 -5 -5 -4 -4 -4 -4 -4 -4 -3 -2 -1 -------- Run | Scr Mat Mat Min Exi Min Mat Fac Was Fac Low Low Zio Pro Fac Low Low Dat Pro Fac Upp Upp Zhi Pro Fac Ext Cet Arc Hub Res Res Acc Total Allies 48 | . . . . . . . . 18 . . . . 2 . . . . 1 . . . . . . 22 5 . . . . . Largest Group 22 | . . . . . . . . 18 17 16 8 1 2 . . . . 1 . . . . . . 22 18 9 6 . . . Highest-Rated Group 1059 | . . . . . . . . 456 442 428 246 33 64 . . . . 94 . . . . . . 1059 1048 654 426 . . . Highest-Rated Ally 156 | . . . . . . . . 35 35 35 33 33 33 . . . . 94 . . . . . . 156 156 142 94 . . . Total Orders 5 | . . . . . . . . . . . . . . 1 . . . . . . . . . . 1 2 . 1 . . . GUARD 1 | . . . . . . . . . . . . . . . . . . . . . . . . . . 1 . . . . . RETURN 4 | . . . . . . . . . . . . . . 1 . . . . . . . . . . 1 1 . 1 . . . Ally Attacks 561 | . . . . . . . . 76 65 38 20 . 22 . . . . 18 . . . . . . 14 221 43 44 . . . Total Damage 16207 | . . . . . . . . 2566 1057 1222 318 . 807 . . . . 629 . . . . . . 174 6212 1542 1680 . . . Kills 71 | . . . . . . . . 7 9 14 . . 4 . . . . 1 . . . . . . 1 27 4 4 . . . Allies Corrupted 1 | . . . . . . . . . . 1 . . . . . . . . . . . . . . . . . . . . . Allies Melted . | . . . . . . . . . . . . . . . . . . . . . . . . . . . . . . . . Intel | -11 -10 -9 -9 -9 -8 -8 -7 -7 -7 -7 -7 -7 -6 -6 -6 -6 -6 -5 -5 -5 -5 -5 -4 -4 -4 -4 -4 -4 -3 -2 -1 ------- Run | Scr Mat Mat Min Exi Min Mat Fac Was Fac Low Low Zio Pro Fac Low Low Dat Pro Fac Upp Upp Zhi Pro Fac Ext Cet Arc Hub Res Res Acc Robot Analysis Total 5 | . 1 . . . . . . . . . . . . . . . . . . . . 4 . . . . . . . . . Derelict Logs Recovered 11 | . . . . . . . . . . 1 1 . 1 . 1 1 . 1 . 2 1 . 2 . . . . . . . . Drone Launches 4 | . . . . . . . . . . . . . . 1 . . . . . . . . . . 1 1 . 1 . . . Drone Recoveries 4 | . . . . . . . . . . . . . . 1 . . . . . . . . . . 1 1 . 1 . . . Exploration | -11 -10 -9 -9 -9 -8 -8 -7 -7 -7 -7 -7 -7 -6 -6 -6 -6 -6 -5 -5 -5 -5 -5 -4 -4 -4 -4 -4 -4 -3 -2 -1 ------------- Run | Scr Mat Mat Min Exi Min Mat Fac Was Fac Low Low Zio Pro Fac Low Low Dat Pro Fac Upp Upp Zhi Pro Fac Ext Cet Arc Hub Res Res Acc Turns Passed 29658 | 141 1350 613 107 775 475 446 152 550 322 472 258 1454 1176 1462 955 584 154 903 1022 1048 1011 457 560 392 3322 499 190 1223 3406 2121 2058 Spaces Moved 13971 | 60 554 220 52 430 232 233 115 367 214 329 153 936 580 692 498 293 78 414 421 524 521 204 307 157 1435 188 90 495 1472 815 892 Core 159 | 3 . . . . . . . . . . . . . . . . . . . . . . . . . . . 4 8 . 144 Treads 10245 | 57 554 220 52 430 232 52 . . . . . 9 438 80 299 293 78 414 93 524 521 204 307 157 1435 188 90 491 1464 815 748 Legs . | . . . . . . . . . . . . . . . . . . . . . . . . . . . . . . . . Wheels 3567 | . . . . . . 181 115 367 214 329 153 927 142 612 199 . . . 328 . . . . . . . . . . . . Hover . | . . . . . . . . . . . . . . . . . . . . . . . . . . . . . . . . Flight . | . . . . . . . . . . . . . . . . . . . . . . . . . . . . . . . . Fastest Speed 50 | 50 160 180 180 180 180 120 120 120 140 140 140 140 140 140 140 200 200 200 120 180 180 180 180 180 180 180 180 50 50 175 50 Average Speed 167 | 154 163 180 180 180 180 133 120 136 140 140 140 140 170 149 179 200 200 200 133 180 180 180 180 180 180 180 180 179 166 194 158 Slowest Speed 240 | 160 180 180 180 180 180 180 120 140 140 140 140 180 180 200 200 200 200 200 180 180 180 180 180 180 180 180 180 200 190 240 180 Overloaded Moves . | . . . . . . . . . . . . . . . . . . . . . . . . . . . . . . . . Propulsion Burnouts . | . . . . . . . . . . . . . . . . . . . . . . . . . . . . . . . . Robots Hopped . | . . . . . . . . . . . . . . . . . . . . . . . . . . . . . . . . Cave-ins Triggered 4 | . . . . . . 1 . . . . . . . 1 . . . . . . 1 . . . . . . . 1 . . Teleports 1 | . . . . . . . . . . . . . . . . . . . . . . 1 . . . . . . . . . Exploration Rate (%) 50 | 6 80 35 15 88 58 30 4 96 7 60 36 83 84 25 71 48 68 61 14 83 71 62 49 5 88 69 75 69 37 27 25 Regions Visited 31 Branch Regions 19 Pre-discovered Areas 14 | . 2 1 . 1 . . . . . 1 . 2 . . 2 . 1 . . . 1 3 . . . . . . . . . Known Exits Taken 12 | . . 1 1 1 1 1 . . 1 1 1 1 . . . . . 1 1 . . . . . . . . 1 . . . Unknown Exits Taken 17 | 1 1 . . . . . . . . . . . 1 1 1 1 1 . . 1 1 1 1 1 1 1 1 . 1 1 . Scrap Searched 26 | . . . 1 . . . . . . 4 . 4 3 . 3 . . 2 . 5 2 . 2 . . . . . . . . Spaces Dug 166 | . 7 4 . . . 9 . . . . . . . 24 . . . . 18 . 4 . . 13 39 . . 24 5 3 16 Terrain Destroyed 986 | . 7 34 29 . 97 9 . . . . 1 . 67 24 47 . . 25 24 42 9 . 3 13 98 . . 341 43 3 70 Melee 150 | . . . . . . 4 . . . . . . . 24 . . . . 18 . 4 . . 13 39 . . 24 5 3 16 Projectile 142 | . 7 4 . . . 5 . . . . 1 . 5 . 3 . . 11 6 8 5 . . . 52 . . 27 5 . 3 AOE 694 | . . 30 29 . 97 . . . . . . . 62 . 44 . . 14 . 34 . . 3 . 7 . . 290 33 . 51 Terrain Rammed 11 | . . . . . . . . . . . . . . . . . . . . . . . . . . . . . . . 11 Walls Destroyed . | . . . . . . . . . . . . . . . . . . . . . . . . . . . . . . . . Machines Disabled . | . . . . . . . . . . . . . . . . . . . . . . . . . . . . . . . . Actions | -11 -10 -9 -9 -9 -8 -8 -7 -7 -7 -7 -7 -7 -6 -6 -6 -6 -6 -5 -5 -5 -5 -5 -4 -4 -4 -4 -4 -4 -3 -2 -1 --------- Run | Scr Mat Mat Min Exi Min Mat Fac Was Fac Low Low Zio Pro Fac Low Low Dat Pro Fac Upp Upp Zhi Pro Fac Ext Cet Arc Hub Res Res Acc Total 18479 | 83 855 360 61 433 268 310 130 420 236 341 179 1077 680 1044 538 292 77 463 818 581 566 277 311 253 1926 351 119 735 2207 1202 1286 Wait 2663 | . 184 76 . . 10 20 13 22 12 8 20 124 13 224 10 . . 22 314 29 28 42 . 66 212 129 26 164 472 227 196 Move 13940 | 59 553 219 51 429 231 232 115 366 213 328 152 935 579 690 497 292 77 413 420 523 520 203 306 156 1434 187 89 494 1471 814 892 Hop . | . . . . . . . . . . . . . . . . . . . . . . . . . . . . . . . . Pick Up 247 | 5 18 7 . 2 . 9 . 17 3 3 . 6 5 26 4 . . 5 18 2 1 2 1 7 19 12 2 3 38 24 8 Fast Attach 98 | 7 3 3 1 . . 3 . 1 . . . . . 1 . . . 2 . . . 4 . 3 9 2 . 2 35 10 12 Attach 90 | . . 1 . . 2 4 2 3 . . . 4 8 10 7 . . . 8 2 2 3 . 3 8 4 . 2 5 2 10 Detach 14 | . . . . . . . . 1 . . . . . 1 . . . 2 1 1 . 1 . 2 3 1 . 1 . . . Swap 135 | . 8 7 2 . 1 8 . 1 . . . 3 6 7 1 . . 7 5 2 1 3 1 2 18 5 . 10 19 12 6 Drop 225 | . 13 4 2 2 2 8 . 9 . 2 . 5 1 21 2 . . 1 15 1 . 5 . 1 21 11 2 6 47 30 14 Fire 816 | 12 74 43 5 . 22 22 . . . . 7 . 50 14 17 . . 11 12 21 10 7 3 . 156 . . 29 114 80 107 Melee 184 | . 2 . . . . 4 . . . . . . 1 27 . . . . 25 . 4 7 . 13 41 . . 24 6 3 27 Ram 14 | . . . . . . . . . . . . . . . . . . . . . . . . . . . . . . . 14 Kick . | . . . . . . . . . . . . . . . . . . . . . . . . . . . . . . . . Crush . | . . . . . . . . . . . . . . . . . . . . . . . . . . . . . . . . Escape Stasis 35 | . . . . . . . . . 8 . . . . 23 . . . . . . . . . . 4 . . . . . . Rewire 18 | . . . . . . . . . . . . . 17 . . . . . . . . . . . 1 . . . . . . Trap . | . . . . . . . . . . . . . . . . . . . . . . . . . . . . . . . . Miscellaneous . | . . . . . . . . . . . . . . . . . . . . . . . . . . . . . . . . Route ------- -11/Scrapyard -10/Materials (discovered 2 exits: *Mat x2) -9/Materials (discovered 2 exits: *Mat / *Min) -9/Mines -9/Exiles -8/Mines -8/Materials -7/Factory -7/Waste -7/Factory -7/Lower Caves -7/Lower Caves -7/Zion -6/Proximity Caves -6/Factory (discovered 4 exits: *Fac x3 / *Low) -6/Lower Caves -6/Lower Caves -6/Data Miner -5/Proximity Caves -5/Factory (discovered 2 exits: *Fac / *Upp) -5/Upper Caves -5/Upper Caves -5/Zhirov -4/Proximity Caves -4/Factory (discovered 3 exits: Res x2 / *Ext) -4/Extension (discovered 3 exits: *Res x2 / *Cet) -4/Cetus (discovered 2 exits: *Res / *Arc) -4/Archives (discovered 3 exits: *Res / *Hub x2) -4/Hub_04(d) (discovered 4 exits: *Res x4) -3/Research -2/Research (discovered 2 exits: *Acc / *Qua) -1/Access (discovered 1 exit: Com) History --------- Turn | Location | Event 85 | -11/Scrapyard | Discovered new exit (range 15) 142 | -11/Scrapyard | Entered Materials 314 | -10/Materials | Build established: Mutant 477 | -10/Materials | Discovered new exit (range 6) 974 | -10/Materials | Discovered new exit (range 8) 1492 | -10/Materials | Entered another Materials area 1492 | -9/Materials | Evolved 2 slots: Utility x2 1711 | -9/Materials | Destroyed 8 combat bots 1727 | -9/Materials | Discovered new exit (range 4) 1734 | -9/Materials | Identified exit to Materials 1928 | -9/Materials | Build established: Hauler-Mutant 2074 | -9/Materials | Discovered new exit (range 15) 2103 | -9/Materials | Identified exit to Mines 2105 | -9/Materials | Entered Mines 2106 | -9/Mines | Met a Derelict bent on vengeance 2200 | -9/Mines | Deemed a non-threat by the Exiles lab entrance 2201 | -9/Mines | Discovered new exit (range 5) 2209 | -9/Mines | Identified exit to Exiles 2212 | -9/Mines | Entered Exiles 2257 | -9/Exiles | Met 8R-AWN 2286 | -9/Exiles | Met EX-HEX 2346 | -9/Exiles | Met EX-BIN 2367 | -9/Exiles | Aligned with FarCom system 2369 | -9/Exiles | Given EX-Vault access code 2412 | -9/Exiles | Opened EX-Vault 2427 | -9/Exiles | Found Longsword +1 2466 | -9/Exiles | Warned to stay clear of 0b10 Research branches 2516 | -9/Exiles | Met EX-DEC 2527 | -9/Exiles | Learned location of Zion (-7) 2622 | -9/Exiles | Visited The Gauntlet 2958 | -9/Exiles | Discovered new exit (range 15) 2983 | -9/Exiles | Identified exit to Mines 2987 | -9/Exiles | Left Exiles lab with Longsword +1 2987 | -9/Exiles | Entered Mines 3430 | -8/Mines | Discovered exit to Materials (range 3) 3462 | -8/Mines | Entered Materials 3462 | -8/Materials | Evolved 2 slots: Weapon x2 3604 | -8/Materials | Crushed by falling debris 3882 | -8/Materials | Discovered new exit (range 15) 3907 | -8/Materials | Identified exit to Factory 3908 | -8/Materials | Entered Factory 3908 | -7/Factory | Evolved 2 slots: Utility x2 4060 | -7/Factory | Sucked down chute 4060 | -7/Factory | Entered Waste 4071 | -7/Waste | Spotted C-40 Crusher 4076 | -7/Waste | Spotted C-40 Crusher 4088 | -7/Waste | Warlord forces began an assault 4227 | -7/Waste | Spotted C-40 Crusher 4234 | -7/Waste | Allies destroyed C-40 Crusher 4235 | -7/Waste | Allies destroyed C-40 Crusher 4237 | -7/Waste | Spotted C-40 Crusher 4239 | -7/Waste | Allies destroyed C-40 Crusher 4240 | -7/Waste | Allies destroyed C-40 Crusher 4240 | -7/Waste | Spotted C-40 Crusher 4247 | -7/Waste | Allies destroyed C-40 Crusher 4248 | -7/Waste | Spotted C-40 Crusher 4250 | -7/Waste | Allies destroyed C-40 Crusher 4309 | -7/Waste | Discovered new exit (range 15) 4411 | -7/Waste | Build established: Hauler-Skirmisher 4594 | -7/Waste | Identified exit to Factory 4610 | -7/Waste | Entered Factory 4610 | -7/Factory | Accompanied by 17 allies 4901 | -7/Factory | Discovered new exit (range 15) 4919 | -7/Factory | Identified exit to Lower Caves 4932 | -7/Factory | Entered Lower Caves 4932 | -7/Lower Caves | Accompanied by 16 allies 5068 | -7/Lower Caves | Attracted the attention of an 0b10 checkpoint 5236 | -7/Lower Caves | Build established: Hauler-Gunner 5370 | -7/Lower Caves | Discovered new exit (range 13) 5386 | -7/Lower Caves | Identified exit to Lower Caves 5404 | -7/Lower Caves | Entered another Lower Caves area 5404 | -7/Lower Caves | Accompanied by 8 allies 5407 | -7/Lower Caves | Learned Factory garrison access intel 5527 | -7/Lower Caves | Spotted B-75 Beast 5625 | -7/Lower Caves | Discovered new exit (range 15) 5646 | -7/Lower Caves | Identified exit to Zion 5662 | -7/Lower Caves | Entered Zion 5662 | -7/Zion | Accompanied by 1 ally 5721 | -7/Zion | Visited the Megawrench Repair Shop 5741 | -7/Zion | Discovered new exit (range 15) 6056 | -7/Zion | Given A8's code to call for help 6289 | -7/Zion | Learned location of Armory (-4) 6366 | -7/Zion | Received a visual enhancement algorithm 6680 | -7/Zion | Learned location of Quarantine (-2) 6716 | -7/Zion | Given the Hacking Drone Bay 6718 | -7/Zion | Found Prototype Device 6825 | -7/Zion | Rebuked by Imprinter 7068 | -7/Zion | Megawrench repaired 10 parts 7110 | -7/Zion | Identified exit to Proximity Caves 7116 | -7/Zion | Entered Proximity Caves 7116 | -6/Proximity Caves | Accompanied by 1 ally 7133 | -6/Proximity Caves | Learned 4 Factory zone layouts 7626 | -6/Proximity Caves | Attracted the attention of an 0b10 outpost 7640 | -6/Proximity Caves | Core integrity fell below 50% 7684 | -6/Proximity Caves | Lost 4 parts (1p3w) 7929 | -6/Proximity Caves | Build established: Hauler-Mutant 8064 | -6/Proximity Caves | Discovered new exit (range 13) 8292 | -6/Proximity Caves | Entered Factory 8292 | -6/Factory | Evolved 2 slots: Utility x2 8293 | -6/Factory | Identified exit to Factory 8294 | -6/Factory | Loaded intel: 3 garrison access locations 8336 | -6/Factory | Identified Hacking Drone Bay 8486 | -6/Factory | Fabricated Arm. Huge Wheel (x2) 8534 | -6/Factory | Fabricated Arm. Huge Wheel (x2) 8578 | -6/Factory | Discovered exit to Factory (range 14) 8924 | -6/Factory | Build established: Hauler-Tank 9340 | -6/Factory | Crushed by falling debris 9598 | -6/Factory | Discovered exit to Factory (range 4) 9635 | -6/Factory | Build established: Hauler-Mutant 9751 | -6/Factory | Discovered new exit (range 2) 9754 | -6/Factory | Entered Lower Caves 9854 | -6/Lower Caves | Learned Extension security intel 9858 | -6/Lower Caves | Lost 5 parts (1u4w) 10131 | -6/Lower Caves | Build established: Hauler-Tank 10661 | -6/Lower Caves | Discovered new exit (range 6) 10709 | -6/Lower Caves | Entered another Lower Caves area 10799 | -6/Lower Caves | Learned Factory stockpile data 11263 | -6/Lower Caves | Discovered new exit (range 12) 11293 | -6/Lower Caves | Entered Data Miner 11293 | -6/Data Miner | Discovered new exit (range 6) 11331 | -6/Data Miner | Met Data Miner 11367 | -6/Data Miner | Acquired the access code to Warlord's prototype stash 11367 | -6/Data Miner | Learned location of Section 7 (-2) 11401 | -6/Data Miner | Received God Mode back door access code from Data Miner 11447 | -6/Data Miner | Entered Proximity Caves 11881 | -5/Proximity Caves | Escorted by Enhanced Grunt 11958 | -5/Proximity Caves | Spotted B-75 Beast 11976 | -5/Proximity Caves | Destroyed B-75 Beast 12023 | -5/Proximity Caves | Found Prototype Device 12023 | -5/Proximity Caves | Identified Exp. Thermal Shield 12300 | -5/Proximity Caves | Discovered exit to Factory (range 11) 12350 | -5/Proximity Caves | Entered Factory 12350 | -5/Factory | Evolved 2 slots: Propulsion x2 12351 | -5/Factory | Identified exit to Upper Caves 12540 | -5/Factory | Discovered new exit (range 16) 12706 | -5/Factory | Build established: Hauler-Mutant 12922 | -5/Factory | Fabricated Hvy. Treads (x2) 13029 | -5/Factory | Fabricated Hvy. Treads (x2) 13141 | -5/Factory | Fabricated Hvy. Treads (x2) 13294 | -5/Factory | Found Prototype Launcher 13315 | -5/Factory | Identified Tesla Bomb Launcher 13347 | -5/Factory | Garrison activated, responded to threat 13372 | -5/Factory | Entered Upper Caves 13464 | -5/Upper Caves | Encountered a Warlord checkpoint 13695 | -5/Upper Caves | Learned Factory machine intel 13996 | -5/Upper Caves | Spotted B-75 Beast 14068 | -5/Upper Caves | Destroyed B-75 Beast 14155 | -5/Upper Caves | Build established: Hauler-Tank 14218 | -5/Upper Caves | Discovered new exit (range 15) 14314 | -5/Upper Caves | Attracted the attention of an 0b10 checkpoint 14369 | -5/Upper Caves | Learned 8 Factory zone layouts 14420 | -5/Upper Caves | Entered another Upper Caves area 14973 | -5/Upper Caves | Attracted the attention of an 0b10 checkpoint 15373 | -5/Upper Caves | Crushed by falling debris 15412 | -5/Upper Caves | Discovered new exit (range 8) 15431 | -5/Upper Caves | Entered Zhirov 15431 | -5/Zhirov | Discovered new exit (range 3) 15464 | -5/Zhirov | Met Zhirov 15506 | -5/Zhirov | Learned location of Testing (-3) 15506 | -5/Zhirov | Learned location of Command (-1) 15542 | -5/Zhirov | Zhirov requested help retrieving the SGEMP Prototype 15640 | -5/Zhirov | Found Alien Artifact 15640 | -5/Zhirov | Identified Transdimensional Reconstructor 15640 | -5/Zhirov | Warped through subspace 15661 | -5/Zhirov | Build established: Hauler-Mutant 15702 | -5/Zhirov | Found Alien Artifact 15702 | -5/Zhirov | Identified Integrated Reactor 15702 | -5/Zhirov | Installed Integrated Reactor, increased core energy generation (+10) 15888 | -5/Zhirov | Entered Proximity Caves 16038 | -4/Proximity Caves | Learned Research trap positions 16424 | -4/Proximity Caves | Discovered new exit (range 14) 16435 | -4/Proximity Caves | Attracted the attention of an 0b10 checkpoint 16442 | -4/Proximity Caves | Spotted B-86 Titan 16448 | -4/Proximity Caves | Entered Factory 16448 | -4/Factory | Evolved 2 slots: Power x1, Utility x1 16449 | -4/Factory | Identified exit to Research 16450 | -4/Factory | Loaded intel: 323 machine locations 16550 | -4/Factory | Fabricated Lgt. Regenerative Plating (x1) 16697 | -4/Factory | Repaired Hyp. Gauss Rifle 16826 | -4/Factory | Discovered new exit (range 9) 16840 | -4/Factory | Entered Extension 17195 | -4/Extension | Disrupted transfer network 17406 | -4/Extension | Spotted B-86 Titan 17547 | -4/Extension | Destroyed B-86 Titan 17605 | -4/Extension | Spotted B-86 Titan 17627 | -4/Extension | Destroyed B-86 Titan 17786 | -4/Extension | Found Hvy. Reflective Plating 17884 | -4/Extension | Discovered exit to Research (range 3) 17965 | -4/Extension | Build established: Hauler-Skirmisher 18859 | -4/Extension | Rescued A7 19076 | -4/Extension | Discovered exit to Research (range 10) 19078 | -4/Extension | Discovered new exit (range 6) 19151 | -4/Extension | Build established: Hauler-Mutant 19598 | -4/Extension | Rescued a captive Derelict 19599 | -4/Extension | Rescued a captive Derelict 19757 | -4/Extension | Rescued a captive Derelict 19758 | -4/Extension | Rescued a captive Derelict 19963 | -4/Extension | Rescued a captive Derelict 20022 | -4/Extension | Rescued a captive Derelict 20162 | -4/Extension | Entered Cetus 20162 | -4/Cetus | Accompanied by 18 allies (A7) 20166 | -4/Cetus | Build established: Commander-Mutant 20167 | -4/Cetus | Acquired a Cetus Manufacturing Module code from A7 20182 | -4/Cetus | Spotted Cetus Guard 20182 | -4/Cetus | Spotted Cetus Guard 20183 | -4/Cetus | Spotted Cetus Guard 20184 | -4/Cetus | Spotted Cetus Guard 20196 | -4/Cetus | Allies destroyed Cetus Guard 20196 | -4/Cetus | Allies destroyed Cetus Guard 20201 | -4/Cetus | Allies destroyed Cetus Guard 20205 | -4/Cetus | Allies destroyed Cetus Guard 20308 | -4/Cetus | Started Cetus Manufacturing Module 20323 | -4/Cetus | Escorted A7 to Cetus Mainframe 20333 | -4/Cetus | Manufactured an Enhanced Grunt 20358 | -4/Cetus | Manufactured an Enhanced Grunt 20383 | -4/Cetus | Manufactured an Enhanced Grunt 20408 | -4/Cetus | Manufactured an Enhanced Grunt 20433 | -4/Cetus | Manufactured an Enhanced Grunt 20462 | -4/Cetus | Discovered new exit (range 15) 20505 | -4/Cetus | Spotted Cetus Guard 20505 | -4/Cetus | Spotted Cetus Guard 20507 | -4/Cetus | Spotted Cetus Guard 20507 | -4/Cetus | Spotted Cetus Guard 20514 | -4/Cetus | Allies destroyed Cetus Guard 20524 | -4/Cetus | Discovered exit to Research (range 16) 20525 | -4/Cetus | Allies destroyed Cetus Guard 20531 | -4/Cetus | Allies destroyed Cetus Guard 20532 | -4/Cetus | Allies destroyed Cetus Guard 20546 | -4/Cetus | Found Exp. Thermal Shield 20552 | -4/Cetus | Met Revision 17 20661 | -4/Cetus | Entered Archives 20661 | -4/Archives | Accompanied by 9 allies (A7) 20666 | -4/Archives | Received a hacking code to weaken MAIN.C 20746 | -4/Archives | Unable to access archive contents 20750 | -4/Archives | Discovered new exit (range 16) 20764 | -4/Archives | Unable to access archive contents 20772 | -4/Archives | Discovered new exit (range 16) 20782 | -4/Archives | Unable to access archive contents 20788 | -4/Archives | Discovered exit to Research (range 15) 20800 | -4/Archives | Unable to access archive contents 20820 | -4/Archives | Build established: Hauler-Skirmisher 20851 | -4/Archives | Entered Hub_04(d) 20851 | -4/Hub_04(d) | Accompanied by 6 allies 20907 | -4/Hub_04(d) | Discovered exit to Research (range 15) 21788 | -4/Hub_04(d) | Build established: Hauler-Assassin 21934 | -4/Hub_04(d) | Network Hub disabled 21937 | -4/Hub_04(d) | Network Hub disabled 21977 | -4/Hub_04(d) | Spotted Lightning 21982 | -4/Hub_04(d) | Spotted Lightning 21991 | -4/Hub_04(d) | Spotted Lightning 22005 | -4/Hub_04(d) | System corruption reached 10% 22062 | -4/Hub_04(d) | Network Hub disabled 22062 | -4/Hub_04(d) | Spotted Lightning 22062 | -4/Hub_04(d) | Spotted Lightning 22062 | -4/Hub_04(d) | Spotted Lightning 22062 | -4/Hub_04(d) | Spotted Lightning 22062 | -4/Hub_04(d) | Spotted Lightning 22062 | -4/Hub_04(d) | Spotted Lightning 22062 | -4/Hub_04(d) | Network Hub disabled 22067 | -4/Hub_04(d) | Core integrity fell below 50% 22068 | -4/Hub_04(d) | Spotted Lightning 22073 | -4/Hub_04(d) | Core integrity fell below 20% 22073 | -4/Hub_04(d) | System corruption reached 30% 22073 | -4/Hub_04(d) | Released all parts (7) 22073 | -4/Hub_04(d) | Spotted Lightning 22074 | -4/Hub_04(d) | Entered Research 22074 | -3/Research | Evolved 2 slots: Utility x2 22075 | -3/Research | Loaded intel: 90 trap records 22103 | -3/Research | Lost 7 parts (1p2n1u3w) 24074 | -3/Research | First assault squad dispatched 24091 | -3/Research | Incoming assault squad redirected 24125 | -3/Research | Build established: Scavenger-Tank 24237 | -3/Research | Found Fusion Bomb Launcher 24262 | -3/Research | Central database locked down 24284 | -3/Research | Found Enh. Force Lance 24340 | -3/Research | Incoming assault squad redirected 24817 | -3/Research | Crushed by falling debris 24817 | -3/Research | System corruption reached 10% 24998 | -3/Research | Discovered new exit (range 13) 25480 | -3/Research | Entered another Research area 25480 | -2/Research | Evolved 2 slots: Power x1, Utility x1 25481 | -2/Research | Identified exit to Quarantine 26007 | -2/Research | First assault squad dispatched 26031 | -2/Research | Incoming assault squad redirected 26331 | -2/Research | Garrison activated, responded to threat 26826 | -2/Research | Incoming investigation squad redirected 26896 | -2/Research | Incoming assault squad redirected 26904 | -2/Research | Build established: Generator-Tank 27048 | -2/Research | Incoming assault squad redirected 27414 | -2/Research | Discovered new exit (range 11) 27526 | -2/Research | Incoming assault squad redirected 27538 | -2/Research | Incoming assault squad redirected 27601 | -2/Research | Entered Access 27601 | -1/Access | Evolved 2 slots: Weapon x2 27889 | -1/Access | Garrison activated, responded to threat 27900 | -1/Access | First assault squad dispatched 28101 | -1/Access | System corruption reached 10% 28163 | -1/Access | Incoming assault squad redirected 28394 | -1/Access | Spotted B-99 Colossus 28517 | -1/Access | Build established: Scavenger-Tank 28589 | -1/Access | Found Fusion Bomb Launcher 28618 | -1/Access | Incoming assault squad redirected 28866 | -1/Access | Incoming assault squad redirected 28868 | -1/Access | Incoming assault squad redirected 29127 | -1/Access | Incoming assault squad redirected 29154 | -1/Access | Identified exit to Command 29287 | -1/Access | Spotted B-99 Colossus 29405 | -1/Access | High security lockdown imminent 29485 | -1/Access | High security lockdown engaged 29544 | -1/Access | Spotted B-99 Colossus 29559 | -1/Access | Destroyed 9 combat bots 29566 | -1/Access | Released all parts (18) 29595 | -1/Access | Lost 7 parts (4u3w) 29629 | -1/Access | Core integrity fell below 50% 29653 | -1/Access | Core integrity fell below 20% 29659 | -1/Access | Core destroyed Last Messages --------------- 29649_ S-43 Plague destroyed. 29649_ Slammed into Sealed Barrier. 29649_ Destabilizing: Core damaged (-32). 29650_ Slammed into Sealed Barrier. 29650_ Destabilizing: Core damaged (-32). 29651_ Slammed into Sealed Barrier. 29651_ Destabilizing: System corrupted (+2). 29652_ Slammed into Sealed Barrier. 29652_ Destabilizing: System corrupted (+1). 29653_ Slammed into Sealed Barrier. 29654_ Destabilizing: System corrupted (+2). 29655_ Slammed into Sealed Barrier. 29655_ Destabilizing: System corrupted (+2). 29656_ Slammed into Sealed Barrier. 29657_ Destabilizing: Core damaged (-48). 29657_ Destabilizing: System corrupted (+2). 29658_ Slammed into Sealed Barrier. 29658_ Destabilizing: System corrupted (+1). 29659_ Slammed into Sealed Barrier. [Achievement: Overachiever] Map ----- +----------------------------------------------------+ | ???????# #??????????????# #?#############? | | ???????##########??????????????# #??## #? | | ########???????????????????????# #???# #? | | #??????????????????????## #???# " #? | | #??????????############## #???# """ #? | | #??????????# # #???# """ #? | | #??????????# # #???# " ## | | #??????????# # #???# # | | """ #??????????# !# #???# # | | """ #??????????# =!# #???#####+###+# | | R" #??????????# *|=[#! ####### ## # | | """ #??????????# =%[%# T" ## # | | "" #???######## [!!* #= "" / | | #???#%*![w[/= C !!!=/=#*!####### #### | | #???#=######= !*%[%g%|#?????# ####??# | | ###/########h#????# ![*==#i*#?????# ??????# | | [#????# =%*![!#g #?????# ??????## | | ###########????############## #?????# ???????? | | #???????????????????????# ##g #?????#????????? | | #????????????????????"####### #??????????????? | | #????????????????????" g #??????????????? | | #?????BB?????????????" psp #??????????????? | | #?????BB?????????????" %%s #??????????????? | | ???????????????????"== [= #??????????????? | | ?????????????????" #??????????????? | | " ????????????????"@ #??????????????? | | % ???????????????" #??????????????? | | /### BB??????????????" #?????g????????? | | ??? BB??????????????"""" """ #??????????????? | | ????? ????????????????""""T""" #?????g????????? | | ????????????????????????"####### #??????????????? | | ???????????????????????????????? #??????????????? | | ???????????????????????????????? #??????????????? | | ???????????????????????????????? #??????????????? | | ???????????????????????????????? #??????????????? | | ???????????????????????????????? #??????????????? | | ?????????????????????????????????????????????????? | | ?????????????????????????????????C???????????????? | | ?????????????????????????????????????????????????? | | ?????????????????????????????????????????????????? | | ???????????????????????????????????o?????????????? | | ?????????????????????????????????????????????????? | | ?????????????????????????????????????????????????? | | ?????????????????????????????????????????????????? | | ?????????????????????????????????????????????????? | | ?????????????????????????????????????????????????? | | ?????????????????????????????????????????????????? | | ?????????????????????????????????????????????????? | | ?????????????????????????????????????????????????? | | #########????????????????????????????????????????? | +----------------------------------------------------+ Best States ------------- Heat Dissipation 90 Coolant Potential 80 Energy Generation 75 Energy Capacity 1135 Matter Stores 300 Matter Capacity 300 Sight Range 16 Terrain Scan Range 24 Terrain Scan Density 10 Base Temperature (-) 200 EM Shielding 6 Armor Coverage 1200 Resistance: TH 30 Resistance: EM 25 Power Shielding 90 Utility Shielding 66 Weapon Cycling 20 Phase Shifting 15 Evasion (%) 55 Target Analysis 8 Recoil Reduction 4 Offensive Hacking 10 Defensive Hacking 12 Item Schematics ----------------- Arm. Huge Wheel | -8/Materials | Scanalyzed Gauss Rifle | -8/Materials | Scanalyzed Recalibrator | -8/Materials | Scanalyzed Hcp. Storage Unit | -8/Materials | Scanalyzed Plasma Cutter | -8/Materials | Scanalyzed Grenade Launcher | -8/Materials | Scanalyzed Hvy. Riot Gun | -7/Zion | Free Barrage Gun | -7/Zion | Free Bore Cannon | -7/Zion | Free Tactical Coordination Suite | -7/Zion | Free Hvy. Treads | -6/Factory | Scanalyzed Hvy. Pick | -6/Factory | Scanalyzed Lgt. Regenerative Plating | -6/Data Miner | Free Mni. Smartbomb Launcher | -6/Data Miner | Free Exp. Transmission Jammer | -6/Data Miner | Free Exp. Terrain Scan Processor | -6/Data Miner | Free Triangulator | -6/Data Miner | Free Cmb. Gravmag System | -6/Data Miner | Free Exp. Flexi-carbon Leg | -6/Data Miner | Free Combat Drone Bay | -6/Data Miner | Free Assault Drone Bay | -5/Zhirov | Free Exp. Heat Sink | -5/Zhirov | Free Exp. Optical Array | -5/Zhirov | Free Imp. Arc Thrower | -5/Zhirov | Free Robot Schematics ------------------ S-27 Virus | -6/Data Miner | Free G-50 Soldier | -6/Data Miner | Free G-67 Veteran | -6/Data Miner | Free L-41 Fighter | -6/Data Miner | Free X-72 Disruptor | -6/Data Miner | Free I-36 Angel | -6/Data Miner | Free Fabricated ------------ Arm. Huge Wheel | x2 | -6/Factory Arm. Huge Wheel | x2 | -6/Factory Hvy. Treads | x2 | -5/Factory Hvy. Treads | x2 | -5/Factory Hvy. Treads | x2 | -5/Factory Lgt. Regenerative Plating | x1 | -4/Factory Alien Tech Used ----------------- Transdimensional Reconstructor Integrated Reactor Achievements -------------- 404 Armchair Analyst Just Shoot The Terminal More Power To You Overachiever Production Line Subspace Traveler The Science Guy Challenges ------------ None Game ------ Seed ProtonBiometalClaw Manual? 0 Play Time 04:48:19 Cumulative 123.0 hours Start 2021.12.09 @ 23:28:35 End 2021.12.10 @ 05:31:45 Sessions 5 Manual Loads 0 Difficulty Rogue Special Mode None Game No. 56 Rogue 56 Adventurer 0 Explorer 0 Win Type - Total 2 Types 1/0/0/0/1/0/0/0/0 Lore% 44 Gallery% 62 Achievement% 52 Wizard Run 0 Options --------- ASCII 0 Keyboard 0 Movement Mouse Keybinds 0 Fullscreen 0 Font 28/SmallcapsGlow Map View 72x54 Tactical HUD 1 Map Filters NONE Filters NONE Steam 1 RUN: 6205a1d7-6379-487a-a99b-8837de21190a